Cogmind - Beta 13 @@@ ROGUE MODE // 2024.04.04 @ 23:43:11 Player: CrazyNinja Result: Destroyed by G-47 Trooper with Particle Gun Performance ------------- Evolutions (2) 1000 Regions Visited (4) 800 Robots Destroyed (30) 150 Value Destroyed (668) 668 Prototype IDs (0) 0 Alien Tech Used (0) 0 Bonus (13) 13 TOTAL SCORE: 2631 Bonus ------- High Alert Combat Kills 13 Cogmind --------- Core Integrity 0/550 Matter 261/400 Energy 100/100 System Corruption 0% Temperature Cool (9) Movement Walking (400) Ox4 Location -8/Materials Parts ------- > --- POWER (2) -------- (None) > --- PROPULSION (2) --- Aluminum Leg > --- UTILITY (3) ------ High-capacity Storage Unit Medium Matter Pod > --- WEAPON (4) ------- (None) > --- INVENTORY (20) --- Small Storage Unit Medium Matter Pod (100) Weight Redist. System Signal Interpreter Peak State ------------ > --- POWER ------------ Light Ion Engine Light Ion Engine > --- PROPULSION ------- Light Treads Light Treads > --- UTILITY ---------- High-capacity Storage Unit Medium Matter Pod Shield Generator > --- WEAPON ----------- Particle Cannon Particle Cannon Light Assault Rifle Light Cannon > --- INVENTORY -------- Light Ion Engine Aluminum Leg Aluminum Leg Small Storage Unit Medium Matter Pod Signal Interpreter Light Armor Plating Small Laser Small Laser Small Laser Particle Cannon [Rating: 15] Favorites ----------- Power Light Ion Engine Engine Light Ion Engine Propulsion Light Treads Treads Light Treads Leg Aluminum Leg Utility Medium Matter Pod Device Shield Generator Storage Medium Matter Pod Protection Light Armor Plating Weapon Small Laser Energy Gun Small Laser Energy Cannon Particle Cannon Ballistic Gun Light Assault Rifle Ballistic Cannon Light Cannon Launcher Rocket Launcher Build | -11 -10 -10 -9 -8 ------- Run | Yrd Mat Min Mat Mat Slots Evolved 4 | . . . 2 2 Power 1 | . . . . 1 Propulsion . | . . . . . Utility 1 | . . . 1 . Weapon 2 | . . . 1 1 Parts Attached 26 | 6 2 2 5 11 Power 5 | 1 . 1 . 3 Engine 5 | 1 . 1 . 3 Core . | . . . . . Reactor . | . . . . . Propulsion 4 | 2 . . . 2 Treads 2 | 2 . . . . Leg 2 | . . . . 2 Wheel . | . . . . . Hover . | . . . . . Flight . | . . . . . Utility 6 | 1 2 . 2 1 Device 1 | . . . 1 . Storage 4 | 1 2 . 1 . Processor . | . . . . . Hackware . | . . . . . Protection 1 | . . . . 1 Artifact . | . . . . . Weapon 11 | 2 . 1 3 5 Energy Gun 5 | 2 . . . 3 Energy Cannon 3 | . . . 1 2 Ballistic Gun 1 | . . . 1 . Ballistic Cannon 1 | . . . 1 . Launcher 1 | . . 1 . . Special Weapon . | . . . . . Impact Weapon . | . . . . . Slashing Weapon . | . . . . . Piercing Weapon . | . . . . . Special Melee Weapon . | . . . . . Unidentified Prototypes . | . . . . . Parts Lost 18 | . . . 1 17 Power 4 | . . . . 4 Propulsion 3 | . . . . 3 Utility 2 | . . . . 2 Weapon 9 | . . . 1 8 Highest Loss Streak 17 | . . . 1 17 To Critical Strikes . | . . . . . Average Slot Usage (%) 94 | . 97 100 99 74 Engine 12 | . 14 14 11 11 Treads 21 | . 28 28 22 10 Device 3 | . . . 4 5 Storage 25 | . 25 28 28 18 Energy Gun 14 | . 28 27 10 1 Energy Cannon 3 | . . . 2 13 Ballistic Gun 5 | . . . 11 4 Ballistic Cannon 1 | . . . . 6 Launcher 4 | . . . 8 . Naked Turns . | . . . . . Heaviest Build 62 | 12 14 15 56 62 Greatest Support 40 | 40 40 40 40 40 Greatest Overweight (x) 18 | . . . 1 18 Average Overweight (x) . | . . . 1 1 Largest Inventory Capacity 20 | 8 8 8 20 20 Average Capacity 15 | 7 8 8 19 20 Most Carried 14 | 6 7 8 14 13 Average Carried 9 | 3 6 7 11 10 Final Capacity 20 | 8 8 8 20 20 Final Carried 13 | 6 7 8 13 4 Class Distribution -------------------- 44% | Mutant 27% | Tank 27% | Gunner Dominant Class ---------------- Mutant | -10/Materials Mutant | -10/Mines Gunner | -9/Materials Tank | -8/Materials Resources | -11 -10 -10 -9 -8 ----------- Run | Yrd Mat Min Mat Mat Matter Collected 878 | 231 131 67 358 91 Remotely . | . . . . . Salvage Created 787 | . 131 51 480 125 Parts 45 | . 6 4 32 3 Haulers Intercepted 1 | . . . 1 . Recyclers Shooed . | . . . . . Parts Field Recycled . | . . . . . Retrieved Matter . | . . . . . Parts Self-Destructed . | . . . . . Prevented . | . . . . . Kills | -11 -10 -10 -9 -8 ------- Run | Yrd Mat Min Mat Mat Combat Hostiles Destroyed 19 | . 2 3 12 2 Guns 9 | . 2 3 4 . Cannons 1 | . . . . 1 AOE 8 | . . . 8 . Classes Destroyed 10 | . 2 1 6 1 Worker 2 | . . . 2 . Builder 1 | . . . . 1 Tunneler 1 | . . . 1 . Hauler 1 | . . . 1 . Recycler 2 | . . . 2 . Watcher 4 | . 1 . 3 . Swarmer 8 | . . 3 5 . Grunt 6 | . 2 . 3 1 Brawler 1 | . . . 1 . Sentry 4 | . . . 3 1 Best Kill Streak 7 | . 2 3 7 2 Combat Bots Only 4 | . 2 3 4 1 Max Kills in Single Turn 3 | . 1 1 3 1 Gunslinging . | . . . . . Exploded 3 | . . . 3 . Melee . | . . . . . Uniques/NPCs Destroyed . | . . . . . Combat | -11 -10 -10 -9 -8 -------- Run | Yrd Mat Min Mat Mat Hostile Shots Fired 220 | . 12 8 33 167 Missed 46 | . 4 1 15 26 Damage Taken 2568 | . 119 61 258 2130 Core 636 | . 11 14 51 560 Absorbed by Shields 94 | . . . 51 43 Core Remaining (%) 92 | 100 . 90 87 . Volleys Fired 69 | . 8 3 27 31 Largest 4 | . 2 2 3 4 Hottest 191 | . 80 80 128 191 Shots Fired 150 | . 16 6 64 64 Gun 84 | . 16 6 43 19 Cannon 46 | . . . 1 45 Launcher 20 | . . . 20 . Special . | . . . . . Kinetic 45 | . . . 25 20 Thermal 85 | . 16 6 19 44 Explosive 20 | . . . 20 . Electromagnetic . | . . . . . Robot Hit Streak 10 | . 5 2 10 9 Robot Miss Streak 4 | . 2 1 4 3 Penetration Max . | . . . . . Secondary Targets 5 | . 1 2 1 1 Max Gunslinging Chain 1 | . 1 1 1 1 Shots Hit Robots 85 | . 10 3 29 43 Core Hits 55 | . 6 3 34 12 Critical Kills . | . . . . . Critical Parts Destroyed . | . . . . . Critical Strikes . | . . . . . Melee Attacks . | . . . . . Impact . | . . . . . Slashing . | . . . . . Piercing . | . . . . . Sneak Attacks . | . . . . . Combat Hostiles . | . . . . . Follow-up Attacks . | . . . . . Damage Inflicted 2225 | . 112 33 1292 788 Guns 509 | . 112 33 220 144 Cannons 644 | . . . . 644 Explosions 1069 | . . . 1069 . Melee . | . . . . . Ramming 3 | . . . 3 . Kinetic 345 | . . . 109 236 Thermal 808 | . 112 33 111 552 Explosive 1069 | . . . 1069 . Electromagnetic . | . . . . . Impact . | . . . . . Slashing . | . . . . . Piercing . | . . . . . Highest Corruption . | . . . . . Average Corruption . | . . . . . Corruption Purged . | . . . . . Corruption Blocked . | . . . . . Overload Shots . | . . . . . Overflow Damage 4 | . . . 4 . Projectiles . | . . . . . Explosions 4 | . . . 4 . Melee . | . . . . . Knockbacks 4 | . . . . 4 Impact . | . . . . . Kinetic 4 | . . . . 4 Secondary . | . . . . . Self-Inflicted Damage 101 | . . . 101 . Shots 4 | . . . 4 . Rammed 1 | . . . 1 . Targets Rammed 1 | . . . 1 . Kicked . | . . . . . Crushed . | . . . . . Highest Temperature 567 | . 192 54 105 567 Average Temperature 192 | . 91 29 29 296 Received Heat Transfer 1481 | . 66 . 56 1359 Effects 26 | . . . . 26 Shutdowns 8 | . . . . 8 Energy Bleed 8 | . . . . 8 Interference 3 | . . . . 3 Matter Decay 3 | . . . . 3 Damage (minor) 1 | . . . . 1 Damage (major) 3 | . . . . 3 Siege Activations . | . . . . . Robots Corrupted . | . . . . . Combat Hostiles . | . . . . . Parts Fried . | . . . . . Impact Corruptions . | . . . . . Robots Melted 1 | . . . . 1 Combat Hostiles 1 | . . . . 1 Parts Melted . | . . . . . Heat Transferred 1614 | . 250 75 250 1039 Parts Sabotaged . | . . . . . Parts Stolen . | . . . . . Parts Stripped . | . . . . . Power Chain Reactions . | . . . . . Alert | -11 -10 -10 -9 -8 ------- Run | Yrd Mat Min Mat Mat Peak Influence 443 | . 79 100 443 251 Initial 186 | . . 30 39 186 Average 150 | . 54 70 229 187 Maximum Alert Level 2 | . . . 2 1 Low Security (%) 71 | 100 100 100 47 62 Level 1 19 | . . . 29 37 Level 2 9 | . . . 22 . Level 3 . | . . . . . Level 4 . | . . . . . Level 5 . | . . . . . High Security . | . . . . . Max Security . | . . . . . Squads Dispatched 1 | . . . . 1 Investigation . | . . . . . Extermination . | . . . . . Reinforcement 1 | . . . . 1 Assault . | . . . . . Garrison . | . . . . . Intercept . | . . . . . Searches Triggered . | . . . . . Construction Impeded . | . . . . . Haulers Reinforced . | . . . . . Active Scanning Responses . | . . . . . Cargo Convoy Interrupts . | . . . . . Stealth | -11 -10 -10 -9 -8 --------- Run | Yrd Mat Min Mat Mat Distress Signals 2 | . . . 1 1 Communications Jammed . | . . . . . Distress Signals . | . . . . . Times Spotted 32 | . 3 3 16 10 Peak Tracking Total 6 | . 2 3 4 6 Tactical Retreats . | . . . . . Traps | -11 -10 -10 -9 -8 ------- Run | Yrd Mat Min Mat Mat Traps Triggered . | . . . . . Indirectly . | . . . . . Trap Hack Attempts . | . . . . . Triggered . | . . . . . Disarmed . | . . . . . Reprogrammed . | . . . . . Reused . | . . . . . Traps Extracted . | . . . . . Installed . | . . . . . Triggered . | . . . . . Machines | -11 -10 -10 -9 -8 ---------- Run | Yrd Mat Min Mat Mat Machines Disabled 5 | . . . 5 . Max in Single Turn 1 | . . . 1 . Machines Repaired . | . . . . . Machines Dismantled . | . . . . . Machines Sabotaged . | . . . . . Overloaded Fab Kills . | . . . . . Hacking | -11 -10 -10 -9 -8 --------- Run | Yrd Mat Min Mat Mat Machines Accessed 4 | . 2 . 2 . Terminals 3 | . 2 . 1 . Fabricators . | . . . . . Repair Stations 1 | . . . 1 . Recycling Units . | . . . . . Scanalyzers . | . . . . . Garrison Access . | . . . . . Total Hacks 10 | . 5 . 5 . Successful 6 | . 2 . 4 . Failed 3 | . 3 . . . Catastrophic 1 | . 1 . . . Database Lockouts 1 | . . . 1 . Manual . | . . . . . Terminals 9 | . 5 . 4 . Fabricators . | . . . . . Repair Stations 1 | . . . 1 . Recycling Units . | . . . . . Scanalyzers . | . . . . . Garrison Access . | . . . . . Terminal Hacks 5 | . 2 . 3 . Record 3 | . . . 3 . Emergency Access Points 1 | . 1 . . . Patrol Status 1 | . 1 . . . Fabricator Hacks . | . . . . . Repair Station Hacks 1 | . . . 1 . Scan Component 1 | . . . 1 . Recycling Unit Hacks . | . . . . . Scanalyzer . | . . . . . Garrison Access Hacks . | . . . . . Unauthorized Hacks . | . . . . . Terminals . | . . . . . Fabricators . | . . . . . Repair Stations . | . . . . . Recycling Units . | . . . . . Scanalyzers . | . . . . . Garrison Access . | . . . . . Data Cores Recovered . | . . . . . Used . | . . . . . Hacking Detections 3 | . 2 . 1 . Full Trace Events 1 | . 1 . . . Feedback Events . | . . . . . Feedback Blocked . | . . . . . Robot Schematics Acquired . | . . . . . Robots Built . | . . . . . Authchips . | . . . . . Time . | . . . . . Total Robot Build Rating . | . . . . . Part Schematics Acquired . | . . . . . Parts Built . | . . . . . Authchips . | . . . . . Time . | . . . . . Total Part Build Rating . | . . . . . Parts Repaired . | . . . . . Time . | . . . . . Parts Recycled . | . . . . . Recycled Matter . | . . . . . Retrieved Matter . | . . . . . Retrieved Components . | . . . . . Parts Scanalyzed . | . . . . . Part Schematics Acquired . | . . . . . Parts Damaged . | . . . . . Bothacking | -11 -10 -10 -9 -8 ------------ Run | Yrd Mat Min Mat Mat Used RIF Installer . | . . . . . Robots Hacked . | . . . . . Non-combat . | . . . . . Combat . | . . . . . Robot Hacks Applied . | . . . . . Relay Couplers Released . | . . . . . Fabnet Peak Effective % . | . . . . . Robots Rewired . | . . . . . Allies Hacked . | . . . . . Hacks Repelled . | . . . . . Allies | -11 -10 -10 -9 -8 -------- Run | Yrd Mat Min Mat Mat Total Allies . | . . . . . Largest Group . | . . . . . Highest-Rated Group . | . . . . . Highest-Rated Ally . | . . . . . Total Orders . | . . . . . Ally Attacks . | . . . . . Total Damage . | . . . . . Kills . | . . . . . Allies Corrupted . | . . . . . Allies Melted . | . . . . . Intel | -11 -10 -10 -9 -8 ------- Run | Yrd Mat Min Mat Mat Robot Analysis Total . | . . . . . Derelict Logs Recovered 1 | . . 1 . . Drone Launches . | . . . . . Drone Recoveries . | . . . . . Exploration | -11 -10 -10 -9 -8 ------------- Run | Yrd Mat Min Mat Mat Turns Passed 1644 | 122 315 216 704 287 Spaces Moved 679 | 77 179 113 248 62 Core 18 | 17 . . . 1 Treads 653 | 60 179 113 248 53 Legs 8 | . . . . 8 Wheels . | . . . . . Hover . | . . . . . Flight . | . . . . . Fastest Speed 50 | 50 160 160 240 240 Average Speed 195 | 135 160 160 240 261 Slowest Speed 950 | 160 160 160 240 950 Overloaded Moves . | . . . . . Propulsion Burnouts . | . . . . . Robots Hopped . | . . . . . Cave-ins Triggered . | . . . . . Exploration Rate (%) 17 | 4 25 30 23 6 Regions Visited 4 Branch Regions 1 Pre-discovered Areas . | . . . . . Known Exits Taken . | . . . . . Unknown Exits Taken 4 | 1 1 1 1 . Scrap Searched 1 | . . 1 . . Spaces Dug . | . . . . . Terrain Destroyed 171 | . . . 171 . Melee . | . . . . . Projectile 1 | . . . 1 . AOE 170 | . . . 170 . Terrain Rammed . | . . . . . Walls Destroyed . | . . . . . Machines Disabled . | . . . . . Actions | -11 -10 -10 -9 -8 --------- Run | Yrd Mat Min Mat Mat Total 877 | 95 192 146 308 136 Wait 69 | 1 . 18 20 30 Move 675 | 76 178 112 247 62 Hop . | . . . . . Pick Up 31 | 12 3 6 8 2 Fast Attach . | . . . . . Attach 21 | 6 1 . 3 11 Detach . | . . . . . Swap 5 | . 1 2 2 . Drop 6 | . 1 5 . . Fire 69 | . 8 3 27 31 Melee . | . . . . . Ram . | . . . . . Kick . | . . . . . Crush 1 | . . . 1 . Escape Stasis . | . . . . . Rewire . | . . . . . Trap . | . . . . . Miscellaneous . | . . . . . Route ------- -11/Scrapyard -10/Materials -10/Mines -9/Materials -8/Materials History --------- Turn | Location | Event 10 | -11/Scrapyard | Discovered new exit (range 15) 123 | -11/Scrapyard | Entered Materials 230 | -10/Materials | Discovered new exit (range 9) 310 | -10/Materials | Build established: Mutant 438 | -10/Materials | Entered Mines 456 | -10/Mines | Met a Derelict bent on vengeance 618 | -10/Mines | Discovered new exit (range 5) 625 | -10/Mines | Received a Rocket Launcher from a helpful Derelict 654 | -10/Mines | Entered Materials 654 | -9/Materials | Evolved 2 slots: Utility x1, Weapon x1 754 | -9/Materials | Central database locked down 923 | -9/Materials | Build established: Gunner 1349 | -9/Materials | Discovered new exit (range 4) 1358 | -9/Materials | Entered another Materials area 1358 | -8/Materials | Evolved 2 slots: Power x1, Weapon x1 1494 | -8/Materials | Build established: Tank 1583 | -8/Materials | Core integrity fell below 50% 1617 | -8/Materials | Core integrity fell below 20% 1645 | -8/Materials | Destroyed by G-47 Trooper with Particle Gun Last Messages --------------- G-47 Trooper heat spikes uncontrollably. G-47 Trooper overheating. [Achievement: It's Just You] G-47 Trooper critical meltdown. Switching to secondary target: G-47 Trooper. K-01 Serf collects debris. Sml. Laser destroyed. K-01 Serf collects debris. Sml. Laser destroyed. M-13 Machinist repairs G-47 Trooper. M-13 Machinist repairs Aluminum Leg. Particle Cannon destroyed. M-13 Machinist repairs Lgt. Nuclear Core. Acquired 47 matter. Acquired 2 matter. M-13 Machinist suffers critical hit (Burn). M-13 Machinist destroyed. Aluminum Leg destroyed. Critical hit (Burn: +37). K-01 Serf collects debris. Map ----- +----------------------------------------------------+ | ?????????????????????????????????????????????????? | | ?????????????????????????????????????????????????? | | ?????????????????????????????????????????????????? | | ?????????????????????????????????????????????????? | | ?????????????????????????????????????????????????? | | ?????????????????????????????????????????????????? | | ?????????????????????????????????????????????????? | | ?????????????????????????????????????????????????? | | ?????????????????????????????????????????????????? | | ?????????????????????????????????????????????????? | | ?????????????????????????????????????????????????? | | ?????????????????????????????????????????????????? | | ?????????????????????????????????????????????????? | | ?????????????????????????????????????????????????? | | ?????????????????????????????????????????????????? | | ?????????????????????????????????????????????????? | | ?????????????????????????????????????????????????? | | ?????????????????????????????????????????????????? | | ???????????????#?????????????????????????????????? | | ???????????????# ????????????????????????????????? | | ???????????????# ????????????????????????????????? | | ???????????????# ?????????????#######????????????? | | ?????###########u##############* ########?????? | | ????? bg r % =%g u ? | | ????? % w g k g% ? | | ????? % % @ ? | | ????????????###### ########## #############? | | ?????????????????# #????????## ##????????????? | | ?????????????????# #?????????# #?????????????? | | ???????????####### #?????????# #?????????????? | | ???????????# # #?????????# #?????????????? | | ???????????# # #?????????# #?????????????? | | ???????????# """ # #?????????# #?????????????? | | ???????????# """ # ###+####### #?????????????? | | ???????????# """ # ?????????????? | | ???????????# + ?????????????? | | ???????????# # ????????????? | | ???????????# # ###+############????????????? | | ???????????# # #???????????????????????????? | | ???????????# " " # #???????????????????????????? | | ???????????# "R" # #???????????????????????????? | | ???????????# """ #####???????????????????????????? | | ???????????#######???????????????????????????????? | | ?????????????????????????????????????????????????? | | ?????????????????????????????????????????????????? | | ?????????????????????????????????????????????????? | | ?????????????????????????????????????????????????? | | | | | | | +----------------------------------------------------+ Best States ------------- Heat Dissipation 31 Energy Generation 15 Energy Capacity 300 Matter Stores 400 Matter Capacity 400 Sight Range 16 Terrain Scan Density 10 Armor Coverage 150 Evasion (%) 40 Recoil Reduction 2 Item Schematics ----------------- None Robot Schematics ------------------ None Fabricated ------------ Nothing Alien Tech Used ----------------- None Achievements -------------- It's Just You Challenges ------------ None Game ------ Seed PowerFactoryWheel Manual? 0 Play Time 00:15:59 Cumulative 2.0 hours Start 2024.04.04 @ 23:28:20 End 2024.04.04 @ 23:43:11 Sessions 1 Manual Loads 0 Difficulty Rogue Special Mode None Game No. 5 Rogue 5 Adventurer 0 Explorer 0 Win Type - Total 0 Types 0/0/0/0/0/0/0/0/0 Lore% 2 Gallery% 7 Achievement% 7 Wizard Run 0 Options --------- Layout 1 ASCII 0 Keyboard 0 Movement Numpad Keybinds 0 Fullscreen 1 Font 32/SmallcapsGlow Map View 50x35 Zoom Use 0% Tactical HUD 0 Map Filters NONE Filters NONE Steam 1 RUN: d039044f-16a2-40fa-ac7f-cf7513cb2bb7